[Event "Titled Tuesday Blitz March 07 Early 2023"]
[White "Dinu, Dumitru-Daniel"]
[Black "Hernandez Gonzalez, William"]
[WhiteFideId "1208403"]
[BlackFideId "3509915"]
[WhiteElo "2240"]
[BlackElo "2374"]
[Result "0-1"]
[Round "04"]
[TimeControl "180+2"]
[Date "2023.03.07"]
[WhiteClock "0:00:01"]
[BlackClock "0:01:24"]

1. e4 {[%clk 0:03:00]}  c5 {[%clk 0:02:59]} 2. b3 {[%clk 0:02:57]}  Nc6 {[%clk 0:02:59]} 3. Bb2 {[%clk 0:02:57]}  d6 {[%clk 0:02:59]} 4. Bb5 {[%clk 0:02:56]}  Nf6 {[%clk 0:02:58]} 5. Bxc6+ {[%clk 0:02:52]}  bxc6 {[%clk 0:02:58]} 6. d3 {[%clk 0:02:52]}  e5 {[%clk 0:02:48]} 7. Ne2 {[%clk 0:02:37]}  Be7 {[%clk 0:02:48]} 8. O-O {[%clk 0:02:37]}  O-O {[%clk 0:02:44]} 9. f4 {[%clk 0:02:37]}  Ng4 {[%clk 0:02:35]} 10. Qd2 {[%clk 0:02:18]}  exf4 {[%clk 0:02:33]} 11. Nxf4 {[%clk 0:02:04]}  Bg5 {[%clk 0:02:31]} 12. h3 {[%clk 0:01:58]}  Ne5 {[%clk 0:02:30]} 13. Qf2 {[%clk 0:01:51]}  f5 {[%clk 0:02:26]} 14. Ne2 {[%clk 0:01:12]}  Qe7 {[%clk 0:02:07]} 15. Na3 {[%clk 0:00:30]}  Bd7 {[%clk 0:01:51]} 16. Bxe5 {[%clk 0:00:16]}  Qxe5 {[%clk 0:01:39]} 17. Nc4 {[%clk 0:00:16]}  Qe7 {[%clk 0:01:39]} 18. Qg3 {[%clk 0:00:16]}  d5 {[%clk 0:01:35]} 19. Ne5 {[%clk 0:00:13]}  f4 {[%clk 0:01:25]} 20. Qxg5 {[%clk 0:00:04]}  Qxg5 {[%clk 0:01:24]} 21. Nxd7 {[%clk 0:00:04]}  f3 {[%clk 0:01:24]} 22. Rxf3 {[%clk 0:00:01]}  Rxf3 {[%clk 0:01:24]} 0-1


[Site "https://www.chess.com"]

[Event "Titled Tuesday Blitz March 07 Early 2023"]
[White "Matutururu, Maxman"]
[Black "Maze, Sebastien"]
[WhiteFideId "11004487"]
[BlackFideId "613762"]
[WhiteElo "2414"]
[BlackElo "2462"]
[Result "0-1"]
[Round "04"]
[TimeControl "180+2"]
[Date "2023.03.07"]
[WhiteClock "0:00:01"]
[BlackClock "0:00:14"]

1. d4 {[%clk 0:02:56]}  Nf6 {[%clk 0:02:59]} 2. c4 {[%clk 0:02:57]}  g6 {[%clk 0:03:00]} 3. Nf3 {[%clk 0:02:56]}  Bg7 {[%clk 0:03:00]} 4. g3 {[%clk 0:02:56]}  O-O {[%clk 0:03:01]} 5. Bg2 {[%clk 0:02:57]}  d6 {[%clk 0:03:02]} 6. O-O {[%clk 0:02:57]}  c6 {[%clk 0:03:02]} 7. Nc3 {[%clk 0:02:57]}  Qb6 {[%clk 0:03:03]} 8. e4 {[%clk 0:02:52]}  Bg4 {[%clk 0:03:00]} 9. h3 {[%clk 0:02:44]}  Bxf3 {[%clk 0:03:00]} 10. Bxf3 {[%clk 0:02:45]}  Nfd7 {[%clk 0:03:01]} 11. Ne2 {[%clk 0:02:37]}  c5 {[%clk 0:02:58]} 12. Be3 {[%clk 0:02:30]}  Na6 {[%clk 0:02:55]} 13. Rb1 {[%clk 0:02:27]}  Qc7 {[%clk 0:02:50]} 14. Rc1 {[%clk 0:02:21]}  Rfd8 {[%clk 0:02:35]} 15. Bg2 {[%clk 0:02:21]}  Qa5 {[%clk 0:02:30]} 16. Qb3 {[%clk 0:02:18]}  Nb6 {[%clk 0:02:28]} 17. a3 {[%clk 0:02:11]}  Rac8 {[%clk 0:02:27]} 18. Qb5 {[%clk 0:02:07]}  Qxb5 {[%clk 0:01:46]} 19. cxb5 {[%clk 0:02:06]}  cxd4 {[%clk 0:01:46]} 20. Bxd4 {[%clk 0:01:44]}  Nc5 {[%clk 0:01:42]} 21. Bxg7 {[%clk 0:01:26]}  Kxg7 {[%clk 0:01:41]} 22. Rfd1 {[%clk 0:01:23]}  Nb3 {[%clk 0:01:40]} 23. Rc3 {[%clk 0:01:23]}  Rxc3 {[%clk 0:01:32]} 24. bxc3 {[%clk 0:01:20]}  e5 {[%clk 0:01:26]} 25. Nc1 {[%clk 0:01:10]}  Nxc1 {[%clk 0:01:23]} 26. Rxc1 {[%clk 0:01:11]}  Rc8 {[%clk 0:01:23]} 27. Bf1 {[%clk 0:01:09]}  Kf6 {[%clk 0:01:20]} 28. f3 {[%clk 0:01:08]}  Na4 {[%clk 0:01:17]} 29. c4 {[%clk 0:01:06]}  Nc5 {[%clk 0:01:16]} 30. Kf2 {[%clk 0:01:04]}  Ne6 {[%clk 0:01:16]} 31. Ke3 {[%clk 0:01:03]}  Ke7 {[%clk 0:01:11]} 32. a4 {[%clk 0:01:00]}  Nd4 {[%clk 0:01:03]} 33. Be2 {[%clk 0:00:52]}  f6 {[%clk 0:01:00]} 34. Bd1 {[%clk 0:00:52]}  Ra8 {[%clk 0:00:52]} 35. Rb1 {[%clk 0:00:47]}  Kd7 {[%clk 0:00:52]} 36. Kd3 {[%clk 0:00:47]}  Kc7 {[%clk 0:00:52]} 37. a5 {[%clk 0:00:45]}  b6 {[%clk 0:00:49]} 38. Ra1 {[%clk 0:00:42]}  Kb7 {[%clk 0:00:43]} 39. f4 {[%clk 0:00:35]}  Rf8 {[%clk 0:00:38]} 40. g4 {[%clk 0:00:31]}  Ne6 {[%clk 0:00:32]} 41. fxe5 {[%clk 0:00:26]}  fxe5 {[%clk 0:00:32]} 42. Ke3 {[%clk 0:00:23]}  Rf1 {[%clk 0:00:26]} 43. axb6 {[%clk 0:00:21]}  axb6 {[%clk 0:00:25]} 44. Ke2 {[%clk 0:00:20]}  Rh1 {[%clk 0:00:23]} 45. Ra3 {[%clk 0:00:18]}  Rxh3 {[%clk 0:00:17]} 46. Rxh3 {[%clk 0:00:16]}  Nf4+ {[%clk 0:00:17]} 47. Kf3 {[%clk 0:00:16]}  Nxh3 {[%clk 0:00:18]} 48. Ke3 {[%clk 0:00:09]}  Ng5 {[%clk 0:00:18]} 49. Be2 {[%clk 0:00:08]}  Kc7 {[%clk 0:00:18]} 50. Bd1 {[%clk 0:00:08]}  Kd8 {[%clk 0:00:18]} 51. Be2 {[%clk 0:00:09]}  Ke7 {[%clk 0:00:19]} 52. Bd1 {[%clk 0:00:09]}  Kf6 {[%clk 0:00:19]} 53. Be2 {[%clk 0:00:10]}  Ne6 {[%clk 0:00:20]} 54. Bd1 {[%clk 0:00:08]}  Kg5 {[%clk 0:00:20]} 55. Kf3 {[%clk 0:00:07]}  Kh4 {[%clk 0:00:20]} 56. Ke3 {[%clk 0:00:03]}  Kg3 {[%clk 0:00:19]} 57. Be2 {[%clk 0:00:02]}  Nf4 {[%clk 0:00:14]} 58. Bd1 {[%clk 0:00:02]}  h5 {[%clk 0:00:14]} 59. gxh5 {[%clk 0:00:03]}  gxh5 {[%clk 0:00:14]} 60. Bf3 {[%clk 0:00:03]}  h4 {[%clk 0:00:14]} 61. Bh1 {[%clk 0:00:03]}  h3 {[%clk 0:00:14]} 62. Kd2 {[%clk 0:00:01]}  Ng2 {[%clk 0:00:14]} 0-1


[Site "https://www.chess.com"]

[Event "Titled Tuesday Blitz March 07 Early 2023"]
[White "Rodchenkov, Sergey D."]
[Black "Vifleemskaia, Svetlana"]
[WhiteFideId "4168712"]
[BlackFideId "4129490"]
[WhiteElo "2277"]
[BlackElo "1930"]
[Result "1-0"]
[Round "04"]
[TimeControl "180+2"]
[Date "2023.03.07"]
[WhiteClock "0:00:11"]
[BlackClock "0:00:01"]

1. e4 {[%clk 0:03:00]}  e5 {[%clk 0:02:58]} 2. Nf3 {[%clk 0:03:00]}  Nc6 {[%clk 0:02:58]} 3. Bc4 {[%clk 0:03:01]}  Nf6 {[%clk 0:02:57]} 4. d3 {[%clk 0:03:01]}  Be7 {[%clk 0:02:57]} 5. O-O {[%clk 0:03:01]}  O-O {[%clk 0:02:57]} 6. a4 {[%clk 0:02:50]}  a6 {[%clk 0:02:55]} 7. Nc3 {[%clk 0:02:50]}  d6 {[%clk 0:02:53]} 8. Nd5 {[%clk 0:02:50]}  Nxd5 {[%clk 0:02:52]} 9. exd5 {[%clk 0:02:50]}  Nd4 {[%clk 0:02:47]} 10. Nxd4 {[%clk 0:02:46]}  exd4 {[%clk 0:02:47]} 11. Qf3 {[%clk 0:02:41]}  Bg5 {[%clk 0:02:33]} 12. Re1 {[%clk 0:02:22]}  Bd7 {[%clk 0:02:21]} 13. Bb3 {[%clk 0:02:04]}  Bf6 {[%clk 0:01:47]} 14. Bf4 {[%clk 0:01:42]}  b5 {[%clk 0:01:46]} 15. a5 {[%clk 0:01:41]}  Re8 {[%clk 0:01:40]} 16. h3 {[%clk 0:01:40]}  h6 {[%clk 0:01:32]} 17. Rxe8+ {[%clk 0:01:37]}  Bxe8 {[%clk 0:01:31]} 18. Re1 {[%clk 0:01:30]}  Bd7 {[%clk 0:01:28]} 19. Qg3 {[%clk 0:01:17]}  Kh7 {[%clk 0:01:26]} 20. Qf3 {[%clk 0:01:10]}  Qf8 {[%clk 0:01:19]} 21. Qe4+ {[%clk 0:00:57]}  g6 {[%clk 0:01:17]} 22. Qf3 {[%clk 0:00:57]}  Bg7 {[%clk 0:01:10]} 23. Bd2 {[%clk 0:00:46]}  Re8 {[%clk 0:01:08]} 24. c3 {[%clk 0:00:44]}  Rxe1+ {[%clk 0:01:05]} 25. Bxe1 {[%clk 0:00:45]}  Qe7 {[%clk 0:01:04]} 26. Bd2 {[%clk 0:00:44]}  Qf6 {[%clk 0:00:58]} 27. Qxf6 {[%clk 0:00:24]}  Bxf6 {[%clk 0:00:58]} 28. c4 {[%clk 0:00:24]}  c6 {[%clk 0:00:33]} 29. cxb5 {[%clk 0:00:20]}  cxb5 {[%clk 0:00:29]} 30. Kf1 {[%clk 0:00:19]}  g5 {[%clk 0:00:21]} 31. Ke2 {[%clk 0:00:19]}  Kg6 {[%clk 0:00:21]} 32. Kf3 {[%clk 0:00:18]}  h5 {[%clk 0:00:19]} 33. Ke2 {[%clk 0:00:19]}  g4 {[%clk 0:00:16]} 34. hxg4 {[%clk 0:00:20]}  hxg4 {[%clk 0:00:17]} 35. Bb4 {[%clk 0:00:20]}  Be5 {[%clk 0:00:16]} 36. Bd1 {[%clk 0:00:20]}  f5 {[%clk 0:00:15]} 37. Kd2 {[%clk 0:00:19]}  f4 {[%clk 0:00:14]} 38. f3 {[%clk 0:00:19]}  gxf3 {[%clk 0:00:12]} 39. Bxf3 {[%clk 0:00:18]}  Kg5 {[%clk 0:00:11]} 40. Ke2 {[%clk 0:00:17]}  Bf5 {[%clk 0:00:11]} 41. Kd2 {[%clk 0:00:15]}  Kh4 {[%clk 0:00:10]} 42. Ke2 {[%clk 0:00:14]}  Kg5 {[%clk 0:00:09]} 43. Be1 {[%clk 0:00:15]}  Bf6 {[%clk 0:00:08]} 44. Bf2 {[%clk 0:00:15]}  Be5 {[%clk 0:00:09]} 45. b4 {[%clk 0:00:15]}  Bf6 {[%clk 0:00:08]} 46. Kd2 {[%clk 0:00:14]}  Be5 {[%clk 0:00:09]} 47. Be4 {[%clk 0:00:15]}  Bg4 {[%clk 0:00:06]} 48. Bh7 {[%clk 0:00:14]}  Bd7 {[%clk 0:00:05]} 49. Bg8 {[%clk 0:00:14]}  Bc8 {[%clk 0:00:03]} 50. Ke2 {[%clk 0:00:13]}  Bd7 {[%clk 0:00:03]} 51. Bf7 {[%clk 0:00:13]}  Bg4+ {[%clk 0:00:03]} 52. Kd2 {[%clk 0:00:12]}  Bd7 {[%clk 0:00:04]} 53. Kc2 {[%clk 0:00:13]}  Bg4 {[%clk 0:00:03]} 54. Be8 {[%clk 0:00:11]}  Bc8 {[%clk 0:00:03]} 55. Bc6 {[%clk 0:00:11]}  Kg4 {[%clk 0:00:02]} 56. Kd2 {[%clk 0:00:11]}  f3 {[%clk 0:00:02]} 57. gxf3+ {[%clk 0:00:11]}  Kxf3 {[%clk 0:00:03]} 58. Bh4 {[%clk 0:00:12]}  Bf4+ {[%clk 0:00:02]} 59. Kc2 {[%clk 0:00:11]}  Ke2 {[%clk 0:00:02]} 60. Be7 {[%clk 0:00:12]}  Be5 {[%clk 0:00:02]} 61. Bd8 {[%clk 0:00:11]}  Ke3 {[%clk 0:00:02]} 62. Be8 {[%clk 0:00:11]}  Ke2 {[%clk 0:00:02]} 63. Bg5 {[%clk 0:00:11]}  Kf3 {[%clk 0:00:02]} 64. Bh5+ {[%clk 0:00:11]}  Kf2 {[%clk 0:00:01]} 65. Bd2 {[%clk 0:00:11]} 1-0


[Site "https://www.chess.com"]

[Event "Titled Tuesday Blitz March 07 Early 2023"]
[White "Jiganchine, Roman"]
[Black "Leenhouts, Koen"]
[WhiteFideId "2603667"]
[BlackFideId "1008439"]
[WhiteElo "2316"]
[BlackElo "2409"]
[Result "1-0"]
[Round "04"]
[TimeControl "180+2"]
[Date "2023.03.07"]
[WhiteClock "0:00:08"]
[BlackClock "0:00:26"]

1. e4 {[%clk 0:03:00]}  e5 {[%clk 0:02:41]} 2. Nf3 {[%clk 0:02:59]}  d6 {[%clk 0:02:41]} 3. Nc3 {[%clk 0:02:58]}  Nf6 {[%clk 0:02:40]} 4. d4 {[%clk 0:02:56]}  exd4 {[%clk 0:02:39]} 5. Nxd4 {[%clk 0:02:55]}  Be7 {[%clk 0:02:39]} 6. g3 {[%clk 0:02:52]}  O-O {[%clk 0:02:38]} 7. Bg2 {[%clk 0:02:52]}  c6 {[%clk 0:02:36]} 8. O-O {[%clk 0:02:46]}  a5 {[%clk 0:02:34]} 9. a4 {[%clk 0:02:45]}  Na6 {[%clk 0:02:32]} 10. h3 {[%clk 0:02:37]}  Nc5 {[%clk 0:02:24]} 11. Re1 {[%clk 0:02:37]}  Re8 {[%clk 0:02:22]} 12. Bf4 {[%clk 0:02:33]}  Bf8 {[%clk 0:02:21]} 13. Qd2 {[%clk 0:02:30]}  Ne6 {[%clk 0:02:08]} 14. Nxe6 {[%clk 0:02:15]}  Bxe6 {[%clk 0:02:09]} 15. Rad1 {[%clk 0:02:14]}  Qb6 {[%clk 0:02:08]} 16. b3 {[%clk 0:02:07]}  Rad8 {[%clk 0:02:07]} 17. Be3 {[%clk 0:02:03]}  Qb4 {[%clk 0:02:06]} 18. Bd4 {[%clk 0:01:56]}  Nd7 {[%clk 0:01:58]} 19. Ne2 {[%clk 0:01:38]}  Qxd2 {[%clk 0:01:55]} 20. Rxd2 {[%clk 0:01:39]}  d5 {[%clk 0:01:41]} 21. Nf4 {[%clk 0:01:26]}  dxe4 {[%clk 0:01:31]} 22. Nxe6 {[%clk 0:01:24]}  Rxe6 {[%clk 0:01:29]} 23. Rxe4 {[%clk 0:01:23]}  Nc5 {[%clk 0:01:18]} 24. Rxe6 {[%clk 0:01:14]}  Nxe6 {[%clk 0:01:19]} 25. Bc3 {[%clk 0:01:14]}  Rxd2 {[%clk 0:01:16]} 26. Bxd2 {[%clk 0:01:14]}  Bb4 {[%clk 0:01:17]} 27. c3 {[%clk 0:01:02]}  Bd6 {[%clk 0:01:11]} 28. Bf1 {[%clk 0:00:42]}  Kf8 {[%clk 0:01:08]} 29. Bc4 {[%clk 0:00:39]}  Nc5 {[%clk 0:01:01]} 30. Be3 {[%clk 0:00:33]}  Ne4 {[%clk 0:00:57]} 31. Bd4 {[%clk 0:00:23]}  c5 {[%clk 0:00:52]} 32. Bd5 {[%clk 0:00:20]}  cxd4 {[%clk 0:00:50]} 33. Bxe4 {[%clk 0:00:19]}  dxc3 {[%clk 0:00:51]} 34. Kf1 {[%clk 0:00:17]}  b6 {[%clk 0:00:46]} 35. Ke2 {[%clk 0:00:17]}  g6 {[%clk 0:00:33]} 36. Kd3 {[%clk 0:00:14]}  f5 {[%clk 0:00:28]} 37. Bd5 {[%clk 0:00:14]}  Bb4 {[%clk 0:00:29]} 38. g4 {[%clk 0:00:12]}  fxg4 {[%clk 0:00:28]} 39. hxg4 {[%clk 0:00:12]}  g5 {[%clk 0:00:29]} 40. f3 {[%clk 0:00:09]}  Ke7 {[%clk 0:00:27]} 41. Be4 {[%clk 0:00:08]}  h6 {[%clk 0:00:27]} 42. Bg6 {[%clk 0:00:08]}  Ke6 {[%clk 0:00:26]} 43. Kc2 {[%clk 0:00:08]}  Ke5 {[%clk 0:00:26]} 44. Be8 {[%clk 0:00:08]}  Kf4 {[%clk 0:00:25]} 45. Bh5 {[%clk 0:00:08]}  Kxf3 {[%clk 0:00:24]} 46. Kc1 {[%clk 0:00:08]}  Ke3 {[%clk 0:00:24]} 47. Kc2 {[%clk 0:00:08]}  Kd4 {[%clk 0:00:25]} 48. Bg6 {[%clk 0:00:08]}  Bd6 {[%clk 0:00:25]} 49. Bh5 {[%clk 0:00:08]}  Be5 {[%clk 0:00:26]} 50. Bg6 {[%clk 0:00:08]}  Kc5 {[%clk 0:00:26]} 51. Bh5 {[%clk 0:00:08]}  Kb4 {[%clk 0:00:26]} 52. Bg6 {[%clk 0:00:09]}  b5 {[%clk 0:00:26]} 53. axb5 {[%clk 0:00:08]}  Kxb5 {[%clk 0:00:27]} 54. Bh5 {[%clk 0:00:08]}  Kb4 {[%clk 0:00:28]} 55. Bg6 {[%clk 0:00:08]}  Bd4 {[%clk 0:00:22]} 56. Bh5 {[%clk 0:00:08]}  Ba7 {[%clk 0:00:23]} 57. Bg6 {[%clk 0:00:08]}  Bb8 {[%clk 0:00:24]} 58. Bh5 {[%clk 0:00:09]}  Be5 {[%clk 0:00:24]} 59. Bg6 {[%clk 0:00:09]}  Ka3 {[%clk 0:00:24]} 60. Bh5 {[%clk 0:00:09]}  a4 {[%clk 0:00:22]} 61. bxa4 {[%clk 0:00:09]}  Kxa4 {[%clk 0:00:23]} 62. Bg6 {[%clk 0:00:09]}  Kb4 {[%clk 0:00:24]} 63. Bh5 {[%clk 0:00:09]}  Kc5 {[%clk 0:00:25]} 64. Bg6 {[%clk 0:00:09]}  Kd4 {[%clk 0:00:26]} 65. Bh5 {[%clk 0:00:10]}  Ke3 {[%clk 0:00:26]} 66. Bg6 {[%clk 0:00:09]}  Kf4 {[%clk 0:00:27]} 67. Bh5 {[%clk 0:00:09]}  Kg3 {[%clk 0:00:28]} 68. Kc1 {[%clk 0:00:10]}  Kh4 {[%clk 0:00:29]} 69. Kc2 {[%clk 0:00:10]}  Bd4 {[%clk 0:00:26]} 70. Kd3 {[%clk 0:00:10]}  Kh3 {[%clk 0:00:23]} 71. Kc2 {[%clk 0:00:10]}  Kg3 {[%clk 0:00:20]} 72. Kd3 {[%clk 0:00:10]}  Kf3 {[%clk 0:00:19]} 73. Kc2 {[%clk 0:00:11]}  Be5 {[%clk 0:00:18]} 74. Kd3 {[%clk 0:00:11]}  Kf2 {[%clk 0:00:17]} 75. Kc2 {[%clk 0:00:11]}  Ke2 {[%clk 0:00:17]} 76. Bg6 {[%clk 0:00:11]}  Ke3 {[%clk 0:00:18]} 77. Bh5 {[%clk 0:00:11]}  Kf3 {[%clk 0:00:16]} 78. Kd3 {[%clk 0:00:10]}  Bf6 {[%clk 0:00:17]} 79. Kc2 {[%clk 0:00:10]}  Ke3 {[%clk 0:00:17]} 80. Bg6 {[%clk 0:00:10]}  Bg7 {[%clk 0:00:15]} 81. Bh5 {[%clk 0:00:10]}  Kf4 {[%clk 0:00:14]} 82. Kd3 {[%clk 0:00:10]}  Kf3 {[%clk 0:00:10]} 83. Kc2 {[%clk 0:00:10]}  Ke3 {[%clk 0:00:10]} 84. Bg6 {[%clk 0:00:10]}  Kd4 {[%clk 0:00:11]} 85. Bh5 {[%clk 0:00:10]}  Kc4 {[%clk 0:00:12]} 86. Bg6 {[%clk 0:00:10]}  Bf6 {[%clk 0:00:13]} 87. Bh5 {[%clk 0:00:10]}  Bd4 {[%clk 0:00:13]} 88. Bg6 {[%clk 0:00:10]}  Be3 {[%clk 0:00:14]} 89. Bh5 {[%clk 0:00:10]}  Bd2 {[%clk 0:00:15]} 90. Bg6 {[%clk 0:00:10]}  Kd4 {[%clk 0:00:16]} 91. Bh5 {[%clk 0:00:11]}  Ke3 {[%clk 0:00:17]} 92. Bg6 {[%clk 0:00:11]}  Kf3 {[%clk 0:00:18]} 93. Bh5 {[%clk 0:00:11]}  Kf4 {[%clk 0:00:17]} 94. Kd3 {[%clk 0:00:11]}  Be1 {[%clk 0:00:17]} 95. Kc2 {[%clk 0:00:11]}  Kg3 {[%clk 0:00:14]} 96. Kd3 {[%clk 0:00:10]}  Kf3 {[%clk 0:00:15]} 97. Kc2 {[%clk 0:00:10]}  Ke2 {[%clk 0:00:16]} 98. Bg6 {[%clk 0:00:10]}  Bd2 {[%clk 0:00:17]} 99. Bh5 {[%clk 0:00:10]}  Ke3 {[%clk 0:00:17]} 100. Bg6 {[%clk 0:00:10]}  Kf2 {[%clk 0:00:14]} 101. Bh5 {[%clk 0:00:10]}  Kf3 {[%clk 0:00:15]} 102. Kd3 {[%clk 0:00:10]}  Be1 {[%clk 0:00:15]} 103. Kc2 {[%clk 0:00:10]}  Ke3 {[%clk 0:00:15]} 104. Bg6 {[%clk 0:00:10]}  Kd4 {[%clk 0:00:16]} 105. Bh5 {[%clk 0:00:10]}  Ke5 {[%clk 0:00:17]} 106. Kd3 {[%clk 0:00:09]}  Kf6 {[%clk 0:00:18]} 107. Kc2 {[%clk 0:00:09]}  Ke5 {[%clk 0:00:17]} 108. Kd1 {[%clk 0:00:09]}  Kf4 {[%clk 0:00:18]} 109. Kxe1 {[%clk 0:00:08]}  Ke3 {[%clk 0:00:19]} 110. Kd1 {[%clk 0:00:09]}  Kd3 {[%clk 0:00:19]} 111. Kc1 {[%clk 0:00:09]}  c2 {[%clk 0:00:19]} 112. Bg6+ {[%clk 0:00:09]}  Ke3 {[%clk 0:00:19]} 113. Kxc2 {[%clk 0:00:09]}  Kf4 {[%clk 0:00:20]} 114. Bh5 {[%clk 0:00:09]}  Ke5 {[%clk 0:00:20]} 115. Kd3 {[%clk 0:00:09]}  Kf6 {[%clk 0:00:21]} 116. Kd4 {[%clk 0:00:09]}  Ke6 {[%clk 0:00:22]} 117. Ke4 {[%clk 0:00:10]}  Kf6 {[%clk 0:00:22]} 118. Be8 {[%clk 0:00:10]}  h5 {[%clk 0:00:20]} 119. Bxh5 {[%clk 0:00:10]}  Kg7 {[%clk 0:00:21]} 120. Kf5 {[%clk 0:00:10]}  Kh6 {[%clk 0:00:21]} 121. Kf6 {[%clk 0:00:09]}  Kh7 {[%clk 0:00:22]} 122. Kxg5 {[%clk 0:00:10]}  Kg7 {[%clk 0:00:23]} 123. Be8 {[%clk 0:00:10]}  Kh8 {[%clk 0:00:23]} 124. Bb5 {[%clk 0:00:10]}  Kg7 {[%clk 0:00:23]} 125. Bd3 {[%clk 0:00:11]}  Kh8 {[%clk 0:00:24]} 126. Kf6 {[%clk 0:00:10]}  Kg8 {[%clk 0:00:24]} 127. g5 {[%clk 0:00:10]}  Kh8 {[%clk 0:00:25]} 128. g6 {[%clk 0:00:09]}  Kg8 {[%clk 0:00:26]} 129. Bc4+ {[%clk 0:00:09]}  Kh8 {[%clk 0:00:26]} 130. g7+ {[%clk 0:00:09]}  Kh7 {[%clk 0:00:25]} 131. g8=Q+ {[%clk 0:00:07]}  Kh6 {[%clk 0:00:26]} 132. Qg6# {[%clk 0:00:08]} 1-0


[Site "https://www.chess.com"]

[Event "Titled Tuesday Blitz March 07 Early 2023"]
[White "Torres Dominguez, David"]
[Black "Kuzmin, Roman"]
[WhiteFideId "2220857"]
[BlackFideId "44134932"]
[WhiteElo "1999"]
[BlackElo "2146"]
[Result "1-0"]
[Round "04"]
[TimeControl "180+2"]
[Date "2023.03.07"]
[WhiteClock "0:00:18"]
[BlackClock "0:00:13"]

1. e4 {[%clk 0:02:56]}  c5 {[%clk 0:02:57]} 2. Nc3 {[%clk 0:02:56]}  d6 {[%clk 0:02:57]} 3. Nf3 {[%clk 0:02:54]}  Nf6 {[%clk 0:02:57]} 4. d4 {[%clk 0:02:55]}  cxd4 {[%clk 0:02:58]} 5. Nxd4 {[%clk 0:02:55]}  a6 {[%clk 0:02:58]} 6. f4 {[%clk 0:02:54]}  e5 {[%clk 0:02:50]} 7. Nf3 {[%clk 0:02:53]}  Nbd7 {[%clk 0:02:46]} 8. a4 {[%clk 0:02:51]}  g6 {[%clk 0:02:20]} 9. Bc4 {[%clk 0:02:45]}  Bg7 {[%clk 0:02:05]} 10. Qxd6 {[%clk 0:02:39]}  Qe7 {[%clk 0:02:00]} 11. Qxe7+ {[%clk 0:02:37]}  Kxe7 {[%clk 0:02:00]} 12. fxe5 {[%clk 0:02:34]}  Ng4 {[%clk 0:02:00]} 13. Nd5+ {[%clk 0:02:30]}  Kf8 {[%clk 0:01:48]} 14. b3 {[%clk 0:02:23]}  Ngxe5 {[%clk 0:01:38]} 15. Ba3+ {[%clk 0:02:18]}  Ke8 {[%clk 0:01:28]} 16. O-O-O {[%clk 0:01:46]}  Nxc4 {[%clk 0:00:56]} 17. bxc4 {[%clk 0:01:37]}  Ra7 {[%clk 0:00:56]} 18. a5 {[%clk 0:01:25]}  Bf8 {[%clk 0:00:26]} 19. Bb2 {[%clk 0:01:16]}  Rg8 {[%clk 0:00:26]} 20. Ng5 {[%clk 0:01:09]}  Bh6 {[%clk 0:00:25]} 21. h4 {[%clk 0:00:59]}  b6 {[%clk 0:00:17]} 22. axb6 {[%clk 0:00:51]}  Rb7 {[%clk 0:00:17]} 23. c5 {[%clk 0:00:52]}  Nxc5 {[%clk 0:00:17]} 24. Nf6+ {[%clk 0:00:46]}  Kf8 {[%clk 0:00:16]} 25. Rd8+ {[%clk 0:00:37]}  Ke7 {[%clk 0:00:14]} 26. Rxg8 {[%clk 0:00:28]}  Be6 {[%clk 0:00:13]} 27. Rd1 {[%clk 0:00:18]} 1-0


[Site "https://www.chess.com"]

[Event "Titled Tuesday Blitz March 07 Early 2023"]
[White "Ruge, Edison"]
[Black "Ramirez Allo, Eduardo"]
[WhiteFideId "4401000"]
[BlackFideId "2224178"]
[WhiteElo "2175"]
[BlackElo "2507"]
[Result "0-1"]
[Round "04"]
[TimeControl "180+2"]
[Date "2023.03.07"]
[WhiteClock "0:00:07"]
[BlackClock "0:00:11"]

1. e4 {[%clk 0:03:00]}  c5 {[%clk 0:03:00]} 2. Nc3 {[%clk 0:02:58]}  a6 {[%clk 0:03:00]} 3. f4 {[%clk 0:02:59]}  b5 {[%clk 0:03:00]} 4. Nf3 {[%clk 0:02:59]}  Bb7 {[%clk 0:03:01]} 5. d3 {[%clk 0:02:59]}  e6 {[%clk 0:03:01]} 6. g3 {[%clk 0:02:59]}  d6 {[%clk 0:03:01]} 7. Bg2 {[%clk 0:02:59]}  Nf6 {[%clk 0:03:02]} 8. O-O {[%clk 0:02:57]}  Qc7 {[%clk 0:03:02]} 9. Ne2 {[%clk 0:02:57]}  Nbd7 {[%clk 0:03:02]} 10. h3 {[%clk 0:02:57]}  Be7 {[%clk 0:03:03]} 11. g4 {[%clk 0:02:57]}  Nb6 {[%clk 0:03:03]} 12. g5 {[%clk 0:02:49]}  Nfd7 {[%clk 0:03:03]} 13. Ng3 {[%clk 0:02:45]}  O-O {[%clk 0:02:54]} 14. Nh2 {[%clk 0:02:35]}  f5 {[%clk 0:02:51]} 15. gxf6 {[%clk 0:02:27]}  Nxf6 {[%clk 0:02:48]} 16. Ng4 {[%clk 0:02:24]}  Nbd7 {[%clk 0:02:38]} 17. Bd2 {[%clk 0:02:10]}  Rf7 {[%clk 0:02:36]} 18. Bc3 {[%clk 0:02:08]}  b4 {[%clk 0:02:34]} 19. Bd2 {[%clk 0:02:05]}  Raf8 {[%clk 0:02:34]} 20. Nxf6+ {[%clk 0:01:55]}  Bxf6 {[%clk 0:02:31]} 21. Rb1 {[%clk 0:01:53]}  c4 {[%clk 0:02:19]} 22. Qg4 {[%clk 0:01:50]}  cxd3 {[%clk 0:01:48]} 23. cxd3 {[%clk 0:01:48]}  Qc2 {[%clk 0:01:47]} 24. Bxb4 {[%clk 0:01:43]}  Nc5 {[%clk 0:01:35]} 25. Rbd1 {[%clk 0:01:14]}  Bd4+ {[%clk 0:01:32]} 26. Kh2 {[%clk 0:01:11]}  Qxb2 {[%clk 0:01:13]} 27. Bxc5 {[%clk 0:01:09]}  dxc5 {[%clk 0:01:02]} 28. Rb1 {[%clk 0:01:08]}  Qxa2 {[%clk 0:00:58]} 29. f5 {[%clk 0:01:01]}  exf5 {[%clk 0:00:54]} 30. Nxf5 {[%clk 0:01:01]}  Be5+ {[%clk 0:00:38]} 31. Kh1 {[%clk 0:00:58]}  Kh8 {[%clk 0:00:30]} 32. Nh6 {[%clk 0:00:32]}  gxh6 {[%clk 0:00:14]} 33. Rxf7 {[%clk 0:00:12]}  Qxb1+ {[%clk 0:00:13]} 34. Bf1 {[%clk 0:00:12]}  Rxf7 {[%clk 0:00:12]} 35. Kg2 {[%clk 0:00:07]}  Qxf1# {[%clk 0:00:11]} 0-1


[Site "https://www.chess.com"]